[Event "NJSK 2018 Jeugd C"]
[Site "Assen, Netherlands"]
[Date "2018.05.02"]
[Round "6.4"]
[White "Shakhverdian, William"]
[Black "Brandsma, Romayn"]
[Result "1-0"]
[TimeControl "40/90m+30sec/move"]
[WhiteElo "1777"]
[BlackElo "1715"]

1. e4 {[%clk 01:30:58]} {[%emt 00:00:02]} e5 {[%clk 01:30:55]} {[%emt
00:00:05]} 2. Nf3 {[%clk 01:31:26]} {[%emt 00:00:03]} Nc6 {[%clk 01:31:12]}
{[%emt 00:00:13]} 3. Bc4 {[%clk 01:28:18]} {[%emt 00:03:38]} Bc5 {[%clk
01:31:13]} {[%emt 00:00:30]} 4. c3 {[%clk 01:28:40]} {[%emt 00:00:07]} Nf6
{[%clk 01:31:35]} {[%emt 00:00:07]} 5. d3 {[%clk 01:28:59]} {[%emt 00:00:11]}
d6 {[%clk 01:31:58]} {[%emt 00:00:07]} 6. a4 {[%clk 01:29:27]} {[%emt
00:00:03]} h6 {[%clk 01:31:33]} {[%emt 00:00:55]} 7. b4 {[%clk 01:29:35]}
{[%emt 00:00:22]} Nxb4 {[%clk 01:31:22]} {[%emt 00:00:41]} 8. cxb4 {[%clk
01:29:53]} {[%emt 00:00:11]} Bxb4+ {[%clk 01:31:45]} {[%emt 00:00:08]} 9. Bd2
{[%clk 01:29:56]} {[%emt 00:00:27]} Bc5 {[%clk 01:28:54]} {[%emt 00:03:22]} 10.
h3 {[%clk 01:28:35]} {[%emt 00:01:50]} c6 {[%clk 01:27:21]} {[%emt 00:02:03]}
11. O-O {[%clk 01:28:43]} {[%emt 00:00:22]} g5 {[%clk 01:26:42]} {[%emt
00:01:09]} 12. Qb3 {[%clk 01:27:53]} {[%emt 00:01:20]} Qe7 {[%clk 01:25:13]}
{[%emt 00:01:59]} 13. Bb4 {[%clk 01:21:00]} {[%emt 00:07:23]} g4 {[%clk
01:23:23]} {[%emt 00:02:20]} 14. hxg4 {[%clk 01:20:43]} {[%emt 00:00:48]} Bxg4
{[%clk 01:22:06]} {[%emt 00:01:47]} 15. Bxc5 {[%clk 01:16:19]} {[%emt
00:04:54]} Bxf3 {[%clk 01:21:04]} {[%emt 00:01:31]} 16. Bxd6 {[%clk 01:07:35]}
{[%emt 00:09:14]} Qd7 {[%clk 01:20:36]} {[%emt 00:00:57]} 17. Bxf7+ {[%clk
01:07:35]} {[%emt 00:00:31]} Qxf7 {[%clk 01:20:58]} {[%emt 00:00:08]} 18. Qxf7+
{[%clk 01:07:56]} {[%emt 00:00:09]} Kxf7 {[%clk 01:21:24]} {[%emt 00:00:04]} 19.
gxf3 {[%clk 00:56:57]} {[%emt 00:11:29]} Rhg8+ {[%clk 01:20:27]} {[%emt
00:01:27]} 20. Kh2 {[%clk 00:56:56]} {[%emt 00:00:30]} Rad8 {[%clk 01:20:45]}
{[%emt 00:00:13]} 21. Bxe5 {[%clk 00:56:11]} {[%emt 00:01:16]} Rxd3 {[%clk
01:21:01]} {[%emt 00:00:13]} 22. Ra3 {[%clk 00:56:33]} {[%emt 00:00:08]} Rdd8
{[%clk 01:20:11]} {[%emt 00:01:18]} 23. Rb3 {[%clk 00:47:10]} {[%emt 00:09:55]}
b6 {[%clk 01:19:13]} {[%emt 00:01:27]} 24. Rg1 {[%clk 00:47:20]} {[%emt
00:00:20]} Rxg1 {[%clk 01:18:57]} {[%emt 00:00:46]} 25. Kxg1 {[%clk 00:47:49]}
{[%emt 00:00:01]} Rd1+ {[%clk 01:19:14]} {[%emt 00:00:13]} 26. Kg2 {[%clk
00:48:06]} {[%emt 00:00:12]} Ke6 {[%clk 01:19:35]} {[%emt 00:00:10]} 27. Bxf6
{[%clk 00:47:09]} {[%emt 00:01:27]} Kxf6 {[%clk 01:19:59]} {[%emt 00:00:07]} 28.
Nc3 {[%clk 00:47:30]} {[%emt 00:00:09]} Rd4 {[%clk 01:20:04]} {[%emt 00:00:23]}
29. Kg3 {[%clk 00:47:44]} {[%emt 00:00:17]} Ke5 {[%clk 01:20:08]} {[%emt
00:00:22]} 30. f4+ {[%clk 00:47:14]} {[%emt 00:01:03]} Ke6 {[%clk 01:20:28]}
{[%emt 00:00:10]} 31. Kg4 {[%clk 00:47:32]} {[%emt 00:00:12]} Rd2 {[%clk
01:20:41]} {[%emt 00:00:18]} 32. Kf3 {[%clk 00:43:52]} {[%emt 00:04:08]} Rd3+
{[%clk 01:19:56]} {[%emt 00:01:15]} 33. Ke2 {[%clk 00:43:48]} {[%emt 00:00:34]}
Rh3 {[%clk 01:20:08]} {[%emt 00:00:20]} 34. f5+ {[%clk 00:42:50]} {[%emt
00:01:28]} Kf7 {[%clk 01:20:27]} {[%emt 00:00:10]} 35. Ra3 {[%clk 00:42:25]}
{[%emt 00:00:55]} Rh1 {[%clk 01:20:22]} {[%emt 00:00:34]} 36. Kf3 {[%clk
00:39:40]} {[%emt 00:03:16]} Rh3+ {[%clk 01:20:20]} {[%emt 00:00:29]} 37. Kg4
{[%clk 00:39:28]} {[%emt 00:00:45]} Rh1 {[%clk 01:20:29]} {[%emt 00:00:21]} 38.
Ne2 {[%clk 00:39:12]} {[%emt 00:00:46]} c5 {[%clk 01:20:42]} {[%emt 00:00:18]}
39. Rd3 {[%clk 00:38:57]} {[%emt 00:00:44]} Kf6 {[%clk 01:20:45]} {[%emt
00:00:27]} 40. Rd6+ {[%clk 00:38:41]} {[%emt 00:00:45]} Ke7 {[%clk 01:21:08]}
{[%emt 00:00:07]} 41. Rg6 {[%clk 00:33:03]} {[%emt 00:06:06]} h5+ {[%clk
01:21:01]} {[%emt 00:00:39]} 42. Kf4 {[%clk 00:31:52]} {[%emt 00:01:40]} Kf7
{[%clk 01:20:55]} {[%emt 00:00:37]} 43. Rc6 {[%clk 00:32:16]} {[%emt 00:00:05]}
h4 {[%clk 01:21:10]} {[%emt 00:00:15]} 44. Rc7+ {[%clk 00:32:37]} {[%emt
00:00:09]} Kf8 {[%clk 01:21:30]} {[%emt 00:00:10]} 45. Ke5 {[%clk 00:31:13]}
{[%emt 00:01:53]} Rd1 {[%clk 01:21:23]} {[%emt 00:00:36]} 46. Nf4 {[%clk
00:30:29]} {[%emt 00:01:14]} Ke8 {[%clk 01:21:21]} {[%emt 00:00:33]} 47. Ke6
{[%clk 00:30:33]} {[%emt 00:00:27]} Rd8 {[%clk 01:21:04]} {[%emt 00:00:46]} 48.
Rh7 {[%clk 00:30:59]} {[%emt 00:00:05]} 1-0

[Event "NJSK 2018 Jeugd C"]
[Site "Assen, Netherlands"]
[Date "2018.05.02"]
[Round "6.5"]
[White "Nguyen, Lucas"]
[Black "Van Foreest, Nanne"]
[Result "1-0"]
[TimeControl "40/90m+30sec/move"]
[WhiteElo "1919"]
[BlackElo "1482"]

1. e4 {[%clk 01:30:57]} {[%emt 00:00:02]} e5 {[%clk 01:30:58]} {[%emt
00:00:03]} 2. Nf3 {[%clk 01:31:23]} {[%emt 00:00:04]} Nc6 {[%clk 01:31:11]}
{[%emt 00:00:16]} 3. d4 {[%clk 01:31:49]} {[%emt 00:00:04]} exd4 {[%clk
01:31:39]} {[%emt 00:00:03]} 4. Nxd4 {[%clk 01:32:15]} {[%emt 00:00:04]} Nf6
{[%clk 01:32:00]} {[%emt 00:00:08]} 5. Nxc6 {[%clk 01:32:38]} {[%emt 00:00:07]}
bxc6 {[%clk 01:32:26]} {[%emt 00:00:04]} 6. Bd3 {[%clk 01:33:04]} {[%emt
00:00:04]} d6 {[%clk 01:32:17]} {[%emt 00:00:39]} 7. O-O {[%clk 01:33:14]}
{[%emt 00:00:19]} Be7 {[%clk 01:32:41]} {[%emt 00:00:06]} 8. Nc3 {[%clk
01:32:59]} {[%emt 00:00:45]} O-O {[%clk 01:33:05]} {[%emt 00:00:07]} 9. Bf4
{[%clk 01:31:51]} {[%emt 00:01:36]} Rb8 {[%clk 01:31:40]} {[%emt 00:01:57]} 10.
Rb1 {[%clk 01:31:33]} {[%emt 00:00:48]} Bg4 {[%clk 01:31:20]} {[%emt 00:00:49]}
11. Be2 {[%clk 01:30:08]} {[%emt 00:01:55]} Bxe2 {[%clk 01:29:00]} {[%emt
00:02:50]} 12. Qxe2 {[%clk 01:30:23]} {[%emt 00:00:15]} d5 {[%clk 01:27:56]}
{[%emt 00:01:33]} 13. Rfd1 {[%clk 01:28:22]} {[%emt 00:02:30]} d4 {[%clk
01:27:28]} {[%emt 00:00:59]} 14. Qf3 {[%clk 01:26:54]} {[%emt 00:01:58]} c5
{[%clk 01:17:02]} {[%emt 00:10:57]} 15. Ne2 {[%clk 01:25:43]} {[%emt 00:01:40]}
Qc8 {[%clk 01:13:21]} {[%emt 00:04:12]} 16. c3 {[%clk 01:24:46]} {[%emt
00:01:26]} dxc3 {[%clk 01:13:33]} {[%emt 00:00:18]} 17. Nxc3 {[%clk 01:25:05]}
{[%emt 00:00:11]} Rd8 {[%clk 01:13:40]} {[%emt 00:00:23]} 18. e5 {[%clk
01:18:41]} {[%emt 00:06:53]} Nd7 {[%clk 01:10:53]} {[%emt 00:03:18]} 19. Nd5
{[%clk 01:16:36]} {[%emt 00:02:34]} Bf8 {[%clk 01:10:27]} {[%emt 00:00:58]} 20.
e6 {[%clk 01:12:57]} {[%emt 00:04:09]} fxe6 {[%clk 01:10:19]} {[%emt 00:00:38]}
21. Bxc7 {[%clk 01:12:13]} {[%emt 00:01:15]} exd5 {[%clk 01:09:40]} {[%emt
00:01:09]} 22. Qxd5+ {[%clk 01:12:36]} {[%emt 00:00:07]} Kh8 {[%clk 01:09:47]}
{[%emt 00:00:23]} 23. Bxd8 {[%clk 01:12:59]} {[%emt 00:00:06]} Qxd8 {[%clk
01:09:32]} {[%emt 00:00:45]} 24. Qxd7 {[%clk 01:13:17]} {[%emt 00:00:12]} Qxd7
{[%clk 01:09:19]} {[%emt 00:00:43]} 25. Rxd7 {[%clk 01:13:40]} {[%emt
00:00:06]} c4 {[%clk 01:09:27]} {[%emt 00:00:22]} 26. Rc7 {[%clk 01:13:44]}
{[%emt 00:00:26]} Rb4 {[%clk 01:09:26]} {[%emt 00:00:31]} 27. a3 {[%clk
01:13:31]} {[%emt 00:00:43]} Rb8 {[%clk 01:09:41]} {[%emt 00:00:16]} 28. Rxc4
{[%clk 01:11:57]} {[%emt 00:02:03]} Bxa3 {[%clk 01:09:55]} {[%emt 00:00:16]} 29.
Ra4 {[%clk 01:11:58]} {[%emt 00:00:28]} Rxb2 {[%clk 01:10:10]} {[%emt
00:00:16]} 30. Rxb2 {[%clk 01:12:14]} {[%emt 00:00:14]} Bxb2 {[%clk 01:10:35]}
{[%emt 00:00:05]} 31. Rb4 {[%clk 01:12:35]} {[%emt 00:00:08]} Be5 {[%clk
01:10:53]} {[%emt 00:00:11]} 32. Re4 {[%clk 01:13:01]} {[%emt 00:00:05]} 1-0

[Event "NJSK 2018 Jeugd C"]
[Site "Assen, Netherlands"]
[Date "2018.05.02"]
[Round "6.6"]
[White "Labruyere, Roger"]
[Black "Bleeker, Kasper"]
[Result "0-1"]
[TimeControl "40/90m+30sec/move"]
[WhiteElo "1665"]
[BlackElo "1737"]

1. e4 {[%clk 01:30:51]} {[%emt 00:00:08]} e5 {[%clk 01:30:56]} {[%emt
00:00:04]} 2. Nf3 {[%clk 01:31:18]} {[%emt 00:00:03]} Nc6 {[%clk 01:31:22]}
{[%emt 00:00:04]} 3. d4 {[%clk 01:31:45]} {[%emt 00:00:03]} exd4 {[%clk
01:31:48]} {[%emt 00:00:04]} 4. Bc4 {[%clk 01:32:11]} {[%emt 00:00:04]} Nf6
{[%clk 01:31:51]} {[%emt 00:00:27]} 5. O-O {[%clk 01:32:36]} {[%emt 00:00:04]}
d6 {[%clk 01:30:53]} {[%emt 00:01:28]} 6. Re1 {[%clk 01:32:33]} {[%emt
00:00:33]} Ne5 {[%clk 01:30:24]} {[%emt 00:01:00]} 7. Nbd2 {[%clk 01:32:21]}
{[%emt 00:00:42]} Bg4 {[%clk 01:30:14]} {[%emt 00:00:40]} 8. Be2 {[%clk
01:31:35]} {[%emt 00:01:15]} Qd7 {[%clk 01:27:21]} {[%emt 00:03:24]} 9. Nxd4
{[%clk 01:31:25]} {[%emt 00:00:39]} Bxe2 {[%clk 01:27:33]} {[%emt 00:00:18]} 10.
Qxe2 {[%clk 01:31:45]} {[%emt 00:00:10]} O-O-O {[%clk 01:22:40]} {[%emt
00:05:23]} 11. N2f3 {[%clk 01:30:19]} {[%emt 00:01:55]} Re8 {[%clk 01:20:26]}
{[%emt 00:02:45]} 12. Bf4 {[%clk 01:29:37]} {[%emt 00:01:10]} Qg4 {[%clk
01:17:46]} {[%emt 00:03:12]} 13. Bxe5 {[%clk 01:28:17]} {[%emt 00:01:49]} dxe5
{[%clk 01:17:57]} {[%emt 00:00:20]} 14. Nf5 {[%clk 01:28:41]} {[%emt 00:00:06]}
Nh5 {[%clk 01:16:16]} {[%emt 00:02:12]} 15. h3 {[%clk 01:26:28]} {[%emt
00:02:42]} Qg6 {[%clk 01:10:52]} {[%emt 00:05:54]} 16. N5h4 {[%clk 01:23:28]}
{[%emt 00:03:29]} Qf6 {[%clk 01:10:09]} {[%emt 00:01:14]} 17. Rad1 {[%clk
01:22:54]} {[%emt 00:01:04]} Bc5 {[%clk 01:10:06]} {[%emt 00:00:34]} 18. Qb5
{[%clk 01:19:21]} {[%emt 00:04:03]} Bb6 {[%clk 01:09:19]} {[%emt 00:01:18]} 19.
Nf5 {[%clk 01:00:36]} {[%emt 00:19:14]} Nf4 {[%clk 01:07:10]} {[%emt 00:02:39]}
20. Qc4 {[%clk 00:53:39]} {[%emt 00:07:27]} Kb8 {[%clk 01:05:28]} {[%emt
00:02:12]} 21. Rd7 {[%clk 00:50:22]} {[%emt 00:03:47]} Qg6 {[%clk 01:04:38]}
{[%emt 00:01:21]} 22. N5h4 {[%clk 00:50:32]} {[%emt 00:00:19]} Qg3 {[%clk
01:02:53]} {[%emt 00:02:15]} 23. Qxc7+ {[%clk 00:46:08]} {[%emt 00:04:55]} Bxc7
{[%clk 01:02:35]} {[%emt 00:00:48]} 24. fxg3 {[%clk 00:46:29]} {[%emt
00:00:08]} Nh5 {[%clk 01:00:31]} {[%emt 00:02:34]} 25. Rxf7 {[%clk 00:45:52]}
{[%emt 00:01:07]} Nxg3 {[%clk 01:00:17]} {[%emt 00:00:45]} 26. Rxg7 {[%clk
00:46:15]} {[%emt 00:00:06]} Nh5 {[%clk 00:59:33]} {[%emt 00:01:14]} 27. Rg5
{[%clk 00:45:11]} {[%emt 00:01:34]} Nf4 {[%clk 00:57:57]} {[%emt 00:02:06]} 28.
Rd1 {[%clk 00:39:35]} {[%emt 00:06:05]} h6 {[%clk 00:54:57]} {[%emt 00:03:31]}
29. Rf5 {[%clk 00:34:38]} {[%emt 00:05:26]} Rhg8 {[%clk 00:53:42]} {[%emt
00:01:46]} 30. Kf1 {[%clk 00:34:24]} {[%emt 00:00:42]} Rg3 {[%clk 00:39:35]}
{[%emt 00:14:38]} 31. Kf2 {[%clk 00:33:35]} {[%emt 00:01:20]} Reg8 {[%clk
00:37:49]} {[%emt 00:02:16]} 32. Rf8+ {[%clk 00:33:27]} {[%emt 00:00:38]} Rxf8
{[%clk 00:37:07]} {[%emt 00:01:13]} 33. Kxg3 {[%clk 00:33:51]} {[%emt
00:00:06]} Rf7 {[%clk 00:35:28]} {[%emt 00:02:08]} 34. c4 {[%clk 00:30:56]}
{[%emt 00:03:25]} Nh5+ {[%clk 00:30:52]} {[%emt 00:05:06]} 35. Kh2 {[%clk
00:30:16]} {[%emt 00:01:10]} Rf4 {[%clk 00:29:52]} {[%emt 00:01:31]} 36. Rd7
{[%clk 00:27:27]} {[%emt 00:03:17]} Rxe4 {[%clk 00:26:19]} {[%emt 00:04:05]} 37.
Rh7 {[%clk 00:27:46]} {[%emt 00:00:10]} b6 {[%clk 00:25:28]} {[%emt 00:01:19]}
38. Rxh6 {[%clk 00:28:01]} {[%emt 00:00:16]} Nf4 {[%clk 00:25:34]} {[%emt
00:00:25]} 39. b3 {[%clk 00:24:26]} {[%emt 00:04:06]} Re2 {[%clk 00:25:24]}
{[%emt 00:00:40]} 40. a4 {[%clk 00:24:20]} {[%emt 00:00:36]} e4 {[%clk
00:24:08]} {[%emt 00:01:47]} 41. Ng1 {[%clk 00:20:50]} {[%emt 00:03:59]} Nd3
{[%clk 00:23:36]} {[%emt 00:01:02]} 42. Kh1 {[%clk 00:19:51]} {[%emt 00:01:29]}
Nf2 {[%clk 00:23:58]} {[%emt 00:00:09]} 0-1

[Event "NJSK 2018 Jeugd C"]
[Site "Assen, Netherlands"]
[Date "2018.05.02"]
[Round "6.7"]
[White "Catalan, Ciro"]
[Black "Klaren, Duncan"]
[Result "0-1"]
[TimeControl "40/90m+30sec/move"]
[WhiteElo "1503"]
[BlackElo "1713"]

1. d4 {[%clk 01:30:57]} {[%emt 00:00:03]} Nf6 {[%clk 01:30:53]} {[%emt
00:00:07]} 2. c4 {[%clk 01:31:18]} {[%emt 00:00:10]} g6 {[%clk 01:31:00]}
{[%emt 00:00:24]} 3. Nc3 {[%clk 01:31:42]} {[%emt 00:00:06]} Bg7 {[%clk
01:31:27]} {[%emt 00:00:03]} 4. e4 {[%clk 01:32:00]} {[%emt 00:00:11]} d6
{[%clk 01:31:54]} {[%emt 00:00:03]} 5. Be3 {[%clk 01:32:20]} {[%emt 00:00:10]}
O-O {[%clk 01:32:11]} {[%emt 00:00:13]} 6. f3 {[%clk 01:32:43]} {[%emt
00:00:06]} c5 {[%clk 01:32:30]} {[%emt 00:00:12]} 7. d5 {[%clk 01:33:01]}
{[%emt 00:00:12]} e6 {[%clk 01:32:54]} {[%emt 00:00:05]} 8. Qd2 {[%clk
01:32:05]} {[%emt 00:01:26]} exd5 {[%clk 01:33:07]} {[%emt 00:00:17]} 9. cxd5
{[%clk 01:31:14]} {[%emt 00:01:21]} Nbd7 {[%clk 01:33:20]} {[%emt 00:00:18]} 10.
O-O-O {[%clk 01:28:28]} {[%emt 00:03:15]} a6 {[%clk 01:32:49]} {[%emt
00:01:01]} 11. g4 {[%clk 01:26:59]} {[%emt 00:01:59]} b5 {[%clk 01:32:19]}
{[%emt 00:01:00]} 12. h4 {[%clk 01:25:52]} {[%emt 00:01:38]} h5 {[%clk
01:30:07]} {[%emt 00:02:43]} 13. gxh5 {[%clk 01:03:34]} {[%emt 00:22:47]} Nxh5
{[%clk 01:29:03]} {[%emt 00:01:34]} 14. Nce2 {[%clk 00:59:12]} {[%emt
00:04:52]} Ne5 {[%clk 01:28:29]} {[%emt 00:01:05]} 15. Nf4 {[%clk 00:58:43]}
{[%emt 00:00:58]} Ng3 {[%clk 01:28:32]} {[%emt 00:00:28]} 16. Rh2 {[%clk
00:57:15]} {[%emt 00:01:57]} Nxf1 {[%clk 01:28:55]} {[%emt 00:00:08]} 17. Rxf1
{[%clk 00:57:42]} {[%emt 00:00:02]} Nc4 {[%clk 01:29:10]} {[%emt 00:00:15]} 18.
Qe1 {[%clk 00:54:18]} {[%emt 00:03:53]} Be5 {[%clk 01:27:01]} {[%emt 00:02:40]}
19. b3 {[%clk 00:50:09]} {[%emt 00:04:38]} Nxe3 {[%clk 01:26:22]} {[%emt
00:01:09]} 20. Qxe3 {[%clk 00:50:34]} {[%emt 00:00:05]} c4 {[%clk 01:24:52]}
{[%emt 00:02:00]} 21. h5 {[%clk 00:32:26]} {[%emt 00:18:38]} g5 {[%clk
01:24:19]} {[%emt 00:01:03]} 22. Rg2 {[%clk 00:31:55]} {[%emt 00:01:00]} Qf6
{[%clk 01:23:21]} {[%emt 00:01:28]} 23. Nfe2 {[%clk 00:22:41]} {[%emt
00:09:42]} cxb3 {[%clk 01:17:53]} {[%emt 00:06:01]} 24. axb3 {[%clk 00:19:34]}
{[%emt 00:03:37]} Kh7 {[%clk 01:12:56]} {[%emt 00:05:27]} 25. Qxg5 {[%clk
00:12:59]} {[%emt 00:07:04]} Qxg5+ {[%clk 01:11:18]} {[%emt 00:02:10]} 26. Rxg5
{[%clk 00:13:27]} {[%emt 00:00:01]} a5 {[%clk 01:11:20]} {[%emt 00:00:29]} 27.
f4 {[%clk 00:10:09]} {[%emt 00:03:47]} Bf6 {[%clk 01:11:20]} {[%emt 00:00:30]}
28. Rg3 {[%clk 00:10:12]} {[%emt 00:00:27]} a4 {[%clk 01:11:16]} {[%emt
00:00:35]} 29. bxa4 {[%clk 00:08:51]} {[%emt 00:01:51]} bxa4 {[%clk 01:10:29]}
{[%emt 00:01:17]} 30. Ra3 {[%clk 00:08:08]} {[%emt 00:01:12]} Bg4 {[%clk
01:10:39]} {[%emt 00:00:20]} 31. Nf3 {[%clk 00:06:46]} {[%emt 00:01:52]} Rfc8+
{[%clk 01:09:20]} {[%emt 00:01:50]} 32. Kd2 {[%clk 00:05:16]} {[%emt 00:01:58]}
Bb2 {[%clk 01:09:25]} {[%emt 00:00:27]} 33. Ra2 {[%clk 00:04:24]} {[%emt
00:01:22]} a3 {[%clk 01:09:48]} {[%emt 00:00:06]} 34. Ned4 {[%clk 00:04:10]}
{[%emt 00:00:44]} Rc4 {[%clk 01:08:06]} {[%emt 00:02:12]} 35. Ng5 {[%clk
00:03:30]} {[%emt 00:01:10]} Kh6 {[%clk 01:08:22]} {[%emt 00:00:14]} 36. Ndf3
{[%clk 00:03:10]} {[%emt 00:00:50]} Rac8 {[%clk 01:08:24]} {[%emt 00:00:29]} 37.
Nxf7 {[%clk 00:01:10]} {[%emt 00:02:30]} Kg7 {[%clk 01:08:49]} {[%emt
00:00:05]} 38. Rg1 {[%clk 00:00:36]} {[%emt 00:01:04]} Rc2+ {[%clk 01:09:08]}
{[%emt 00:00:10]} 39. Kd1 {[%clk 00:00:43]} {[%emt 00:00:23]} Rc1+ {[%clk
01:09:35]} {[%emt 00:00:04]} 40. Kd2 {[%clk 00:00:52]} {[%emt 00:00:20]} Rxg1
41. Nxg1 {[%clk 00:01:21]} Kxf7 {[%clk 01:09:48]} {[%emt 00:00:18]} 42. h6
{[%clk 00:01:26]} {[%emt 00:00:24]} Rc1 {[%clk 01:10:00]} {[%emt 00:00:18]} 43.
Ne2 {[%clk 00:01:22]} {[%emt 00:00:34]} Bxe2 {[%clk 01:07:19]} {[%emt
00:03:10]} 44. Kxe2 {[%clk 00:01:51]} {[%emt 00:00:02]} Ra1 {[%clk 01:07:14]}
{[%emt 00:00:35]} 45. Rxa1 {[%clk 00:02:09]} {[%emt 00:00:13]} Bxa1 {[%clk
01:07:41]} {[%emt 00:00:04]} 46. Kd2 {[%clk 00:02:29]} {[%emt 00:00:09]} a2
{[%clk 01:07:42]} {[%emt 00:00:29]} 47. Kc2 {[%clk 00:02:51]} {[%emt 00:00:07]}
Bd4 {[%emt 00:00:29]} 0-1

[Event "NJSK 2018 Jeugd C"]
[Site "Assen, Netherlands"]
[Date "2018.05.02"]
[Round "6.8"]
[White "Maters, Arthur"]
[Black "Albers, Sasa"]
[Result "1-0"]
[TimeControl "40/90m+30sec/move"]
[WhiteElo "1895"]
[BlackElo "1336"]

1. e4 {[%clk 01:30:59]} c6 {[%clk 01:30:55]} {[%emt 00:00:05]} 2. Nc3 {[%clk
01:31:25]} {[%emt 00:00:04]} d5 {[%clk 01:31:18]} {[%emt 00:00:07]} 3. Nf3
{[%clk 01:31:49]} {[%emt 00:00:06]} dxe4 {[%clk 01:31:41]} {[%emt 00:00:06]} 4.
Nxe4 {[%clk 01:32:14]} {[%emt 00:00:05]} Bf5 {[%clk 01:32:00]} {[%emt
00:00:11]} 5. Ng3 {[%clk 01:32:39]} {[%emt 00:00:06]} Bg6 {[%clk 01:32:25]}
{[%emt 00:00:04]} 6. h4 {[%clk 01:33:03]} {[%emt 00:00:07]} h6 {[%clk
01:32:46]} {[%emt 00:00:09]} 7. Ne5 {[%clk 01:33:29]} {[%emt 00:00:04]} Qd6
{[%clk 01:32:35]} {[%emt 00:00:40]} 8. d4 {[%clk 01:30:29]} {[%emt 00:03:29]}
Nd7 {[%clk 01:32:13]} {[%emt 00:00:52]} 9. Nxg6 {[%clk 01:27:38]} {[%emt
00:03:20]} Qxg6 {[%clk 01:32:21]} {[%emt 00:00:22]} 10. Bd3 {[%clk 01:17:26]}
{[%emt 00:10:43]} Qd6 {[%clk 01:30:01]} {[%emt 00:02:50]} 11. Be3 {[%clk
01:05:20]} {[%emt 00:12:36]} e6 {[%clk 01:29:24]} {[%emt 00:01:07]} 12. Qd2
{[%clk 01:04:24]} {[%emt 00:01:24]} Ngf6 {[%clk 01:28:11]} {[%emt 00:01:45]} 13.
Ne4 {[%clk 01:00:21]} {[%emt 00:04:33]} Nxe4 {[%clk 01:26:10]} {[%emt
00:02:32]} 14. Bxe4 {[%clk 01:00:35]} {[%emt 00:00:15]} Nf6 {[%clk 01:26:24]}
{[%emt 00:00:16]} 15. Bf3 {[%clk 00:59:54]} {[%emt 00:01:11]} Nd5 {[%clk
01:26:22]} {[%emt 00:00:33]} 16. O-O-O {[%clk 00:55:19]} {[%emt 00:05:05]} Qc7
{[%clk 01:21:31]} {[%emt 00:05:20]} 17. Rhe1 {[%clk 00:50:38]} {[%emt
00:05:11]} Nxe3 {[%clk 01:15:54]} {[%emt 00:06:06]} 18. Qxe3 {[%clk 00:47:01]}
{[%emt 00:04:07]} O-O-O {[%clk 01:11:18]} {[%emt 00:05:07]} 19. d5 {[%clk
00:42:09]} {[%emt 00:05:22]} cxd5 {[%clk 01:06:25]} {[%emt 00:05:22]} 20. Qxa7
{[%clk 00:41:10]} {[%emt 00:01:30]} Bc5 {[%clk 01:05:33]} {[%emt 00:01:22]} 21.
Qa8+ {[%clk 00:34:00]} {[%emt 00:07:40]} Qb8 {[%clk 01:05:29]} {[%emt
00:00:35]} 22. Qa4 {[%clk 00:33:29]} {[%emt 00:01:01]} Bxf2 {[%clk 00:57:18]}
{[%emt 00:08:40]} 23. Rf1 {[%clk 00:29:45]} {[%emt 00:04:15]} Bg3 {[%clk
00:52:06]} {[%emt 00:05:41]} 24. Bg4 {[%clk 00:25:01]} {[%emt 00:05:15]} f5
{[%clk 00:41:45]} {[%emt 00:10:51]} 25. Rd3 {[%clk 00:18:34]} {[%emt 00:06:57]}
Be5 {[%clk 00:36:26]} {[%emt 00:05:47]} 26. Be2 {[%clk 00:16:07]} {[%emt
00:02:58]} Rd6 {[%clk 00:30:04]} {[%emt 00:06:53]} 27. Rb3 {[%clk 00:15:03]}
{[%emt 00:01:34]} b6 {[%clk 00:23:33]} {[%emt 00:07:01]} 28. Re1 {[%clk
00:13:27]} {[%emt 00:02:05]} Bf6 {[%clk 00:22:46]} {[%emt 00:01:18]} 29. Kb1
{[%clk 00:10:53]} {[%emt 00:03:04]} Kd8 {[%clk 00:13:56]} {[%emt 00:09:20]} 30.
c4 {[%clk 00:09:37]} {[%emt 00:01:46]} dxc4 {[%clk 00:13:15]} {[%emt 00:01:10]}
31. Bxc4 {[%clk 00:09:28]} {[%emt 00:00:40]} Ke7 {[%clk 00:13:26]} {[%emt
00:00:19]} 32. Qb4 {[%clk 00:08:22]} {[%emt 00:01:36]} Kf7 {[%clk 00:13:36]}
{[%emt 00:00:19]} 33. Rbe3 {[%clk 00:07:52]} {[%emt 00:01:00]} Re8 {[%clk
00:13:31]} {[%emt 00:00:35]} 34. Qb3 {[%clk 00:07:53]} {[%emt 00:00:30]} Qc8
{[%clk 00:13:17]} {[%emt 00:00:44]} 35. Qc2 {[%clk 00:08:14]} {[%emt 00:00:09]}
g6 {[%clk 00:12:27]} {[%emt 00:01:20]} 36. Bxe6+ {[%clk 00:08:01]} {[%emt
00:00:43]} Rdxe6 {[%clk 00:10:50]} {[%emt 00:02:06]} 37. Qxc8 {[%clk 00:08:24]}
{[%emt 00:00:07]} Rxc8 {[%clk 00:11:02]} {[%emt 00:00:19]} 38. Rxe6 {[%clk
00:08:45]} {[%emt 00:00:09]} Bxh4 {[%clk 00:11:06]} {[%emt 00:00:25]} 39. R1e2
{[%clk 00:08:49]} {[%emt 00:00:24]} Bg5 {[%clk 00:10:43]} {[%emt 00:00:55]} 40.
b3 {[%clk 00:09:02]} {[%emt 00:00:18]} Rb8 {[%clk 00:09:42]} {[%emt 00:01:31]}
41. Rc6 {[%clk 00:09:21]} {[%emt 00:00:10]} Bf4 {[%clk 00:09:46]} {[%emt
00:00:27]} 42. Ree6 {[%clk 00:09:32]} {[%emt 00:00:19]} Rg8 {[%clk 00:09:42]}
{[%emt 00:00:34]} 43. Rxb6 {[%clk 00:09:45]} {[%emt 00:00:17]} h5 {[%clk
00:09:47]} {[%emt 00:00:25]} 44. Rec6 {[%clk 00:10:02]} {[%emt 00:00:14]} Rb8
{[%clk 00:09:32]} {[%emt 00:00:45]} 45. Rf6+ {[%clk 00:09:45]} {[%emt
00:00:47]} Kg7 {[%clk 00:09:32]} {[%emt 00:00:30]} 46. Rxg6+ {[%clk 00:10:08]}
{[%emt 00:00:07]} Kh7 {[%clk 00:09:55]} {[%emt 00:00:06]} 47. Rxb8 {[%clk
00:09:58]} {[%emt 00:00:41]} Kxg6 {[%clk 00:10:11]} {[%emt 00:00:14]} 48. Rg8+
{[%clk 00:09:19]} {[%emt 00:01:08]} Kf6 {[%clk 00:10:30]} {[%emt 00:00:11]} 49.
Kc2 {[%clk 00:09:24]} {[%emt 00:00:25]} h4 {[%clk 00:10:47]} {[%emt 00:00:13]}
50. a4 {[%clk 00:09:12]} {[%emt 00:00:42]} Be3 {[%clk 00:10:58]} {[%emt
00:00:19]} 51. Kd3 {[%clk 00:09:13]} {[%emt 00:00:29]} Bg1 {[%clk 00:11:13]}
{[%emt 00:00:14]} 52. a5 {[%clk 00:09:17]} {[%emt 00:00:26]} f4 {[%clk
00:11:27]} {[%emt 00:00:16]} 53. Rg4 {[%clk 00:09:36]} {[%emt 00:00:11]} f3
{[%clk 00:11:47]} {[%emt 00:00:11]} 54. Rf4+ {[%clk 00:09:46]} {[%emt
00:00:20]} 1-0